[Event "72nd RUS-ch Higher League 2019"]
[Site "Yaroslavl"]
[Date "2019.06.28"]
[Round "2.28"]
[White "Kanter, Eduard"]
[Black "Yanchenko, Roman"]
[Result "0-1"]
[ECO "E10"]
[WhiteElo "2392"]
[BlackElo "2478"]
[Annotator "ChessBase"]
[PlyCount "94"]
[EventDate "2019.06.27"]
[EventType "swiss"]
[EventCountry "RUS"]
[SourceTitle "playchess.com"]
[Source "ChessBase"]
[SourceQuality "1"]
[TimeControl "40/5400+30:1800+30"]

1. d4 {[%emt 0:00:31]} Nf6 {[%emt 0:00:00]} 2. c4 {[%emt 0:00:06]} e6 {[%emt 0:00:00]} 3. Nf3 {[%emt 0:00:20]} d5 {[%emt 0:00:00]} 4. g3 {[%emt 0:00:29]} Bb4+ {[%emt 0:00:00]} 5. Nc3 {[%emt 0:00:14]} O-O {[%emt 0:00:20]} 6. Bg2 {[%emt 0:00:17]} Nbd7 {[%emt 0:02:41]} 7. Qb3 {[%emt 0:05:20]} Bxc3+ {[%emt 0:07:28]} 8. Qxc3 {[%emt 0:02:50]} Ne4 {[%emt 0:03:39]} 9. Qc2 {[%emt 0:00:33]} c6 {[%emt 0:00:15]} 10. O-O {[%emt 0:00:14]} f5 {[%emt 0:01:44]} 11. b3 {[%emt 0:03:58]} Qf6 {[%emt 0:03:35]} 12. Bb2 {[%emt 0:04:42]} h5 {[%emt 0:08:23]} 13. Ne5 {[%emt 0:24:21]} h4 {[%emt 0:01:08]} 14. Bxe4 {[%emt 0:05:28]} fxe4 {[%emt 0:01:50]} 15. f4 {[%emt 0:07:35]} Qh6 {[%emt 0:11:45]} 16. Qc3 {[%emt 0:15:39]} hxg3 {[%emt 0:03:48]} 17. Qxg3 {[%emt 0:00:23]} Rf5 {[%emt 0:01:49]} 18. Ng4 {[%emt 0:04:05]} Qh7 {[%emt 0:02:03]} 19. Kh1 {[%emt 0:02:00]} Nf6 {[%emt 0:00:38]} 20. Nxf6+ {[%emt 0:01:10]} Rxf6 {[%emt 0:00:03]} 21. Rg1 {[%emt 0:00:18]} Bd7 {[%emt 0:00:40]} 22. Ba3 {[%emt 0:00:17]} Rh6 {[%emt 0:11:12]} 23. Rg2 {[%emt 0:03:00]} Be8 {[%emt 0:05:21]} 24. Be7 {[%emt 0:05:38]} Bg6 {[%emt 0:05:30]} 25. h4 {[%emt 0:08:54]} Bf5 {[%emt 0:06:09]} 26. Bg5 {[%emt 0:01:39]} Rh5 {[%emt 0:00:04]} 27. Bf6 {[%emt 0:01:20]} g6 {[%emt 0:00:28]} 28. e3 {[%emt 0:00:54]} Qf7 {[%emt 0:00:17]} 29. Be5 {[%emt 0:00:27]} Qe7 {[%emt 0:02:25]} 30. Rh2 {[%emt 0:00:06]} Rf8 {[%emt 0:00:17]} 31. c5 {[%emt 0:00:58]} Rf7 {[%emt 0:00:18]} 32. Kg2 {[%emt 0:00:40]} Rfh7 {[%emt 0:00:05]} 33. Rah1 {[%emt 0:00:25]} b6 {[%emt 0:00:50]} 34. Bd6 {[%emt 0:00:26]} Qd8 {[%emt 0:02:14]} 35. b4 {[%emt 0:01:17]} b5 {[%emt 0:00:22]} 36. Kf2 {[%emt 0:00:28]} a5 {[%emt 0:00:05]} 37. a3 {[%emt 0:00:33]} axb4 {[%emt 0:00:17]} 38. axb4 {[%emt 0:00:01]} Ra7 {[%emt 0:00:02]} 39. Qg1 {[%emt 0:01:07]} Ra4 {[%emt 0:00:47]} 40. Kg3 {[%emt 0:00:00]} Qa8 {[%emt 0:00:00]} 41. Rb2 {[%emt 0:02:30]} Ra3 {[%emt 0:17:21]} 42. Rhh2 {[%emt 0:03:13]} Rh7 {[%emt 0:00:17]} 43. Kf2 {[%emt 0:07:10]} Rxe3 {[%emt 0:00:23]} 44. Qg5 {[%emt 0:03:32]} Rf3+ {[%emt 0:02:04]} 45. Kg2 {[%emt 0:00:40]} Ra7 {[%emt 0:00:26]} 46. Rh1 {[%emt 0:05:46]} Ra2 {[%emt 0:00:07]} 47. Rhb1 {[%emt 0:00:21]} Rb3 {[%emt 0:00:06]} 0-1

[Event "72nd RUS-ch Higher League 2019"]
[Site "Yaroslavl"]
[Date "2019.06.28"]
[Round "2.29"]
[White "Airapetian, Gor"]
[Black "Lesovoi, Evgenij"]
[Result "1/2-1/2"]
[ECO "E15"]
[WhiteElo "2442"]
[BlackElo "2366"]
[Annotator "NA"]
[PlyCount "154"]
[EventDate "2019.06.27"]
[EventType "swiss"]
[EventCountry "RUS"]
[SourceTitle "playchess.com"]
[Source "ChessBase"]
[SourceQuality "1"]
[TimeControl "40/5400+30:1800+30"]

1. d4 {[%emt 0:00:00]} Nf6 {[%emt 0:00:00]} 2. c4 {[%emt 0:00:00]} e6 {[%emt 0:00:02]} 3. Nf3 {[%emt 0:00:00]} b6 {[%emt 0:00:12]} 4. g3 {[%emt 0:00:17]} Ba6 {[%emt 0:00:24]} 5. Qc2 {[%emt 0:00:26]} Bb7 {[%emt 0:03:18]} 6. Bg2 {[%emt 0:00:57]} c5 {[%emt 0:00:38]} 7. d5 {[%emt 0:04:10]} exd5 {[%emt 0:03:54]} 8. cxd5 {[%emt 0:02:41]} Nxd5 {[%emt 0:00:36]} 9. O-O {[%emt 0:00:34]} Nb4 {[%emt 0:12:05]} 10. Qb3 {[%emt 0:11:30]} Bd5 {[%emt 0:17:40]} 11. Qd1 {[%emt 0:13:59]} Bc6 {[%emt 0:07:25]} 12. Nc3 {[%emt 0:02:53]} Be7 {[%emt 0:00:53]} 13. Bf4 {[%emt 0:05:40]} O-O {[%emt 0:10:37]} 14. a3 {[%emt 0:01:21]} N4a6 {[%emt 0:00:06]} 15. Nd5 {[%emt 0:00:48]} Re8 {[%emt 0:06:50]} 16. Ne5 {[%emt 0:09:09]} Bg5 {[%emt 0:05:16]} 17. Qb3 {[%emt 0:11:05]} b5 {[%emt 0:11:46]} 18. Nxc6 {[%emt 0:14:26]} dxc6 {[%emt 0:00:28]} 19. Rfd1 {[%emt 0:03:52]} Bxf4 {[%emt 0:01:46]} 20. Nxf4 {[%emt 0:00:29]} Qf6 {[%emt 0:00:31]} 21. a4 {[%emt 0:02:27]} c4 {[%emt 0:00:13]} 22. Qc2 {[%emt 0:01:11]} Nc7 {[%emt 0:05:41]} 23. axb5 {[%emt 0:02:16]} Nxb5 {[%emt 0:00:10]} 24. Qxc4 {[%emt 0:06:10]} Qxb2 {[%emt 0:00:43]} 25. Rab1 {[%emt 0:03:10]} Qe5 {[%emt 0:01:46]} 26. Rb3 {[%emt 0:01:01]} Rf8 {[%emt 0:01:42]} 27. Re3 {[%emt 0:01:23]} Qf6 {[%emt 0:00:08]} 28. Qc5 {[%emt 0:01:28]} g6 {[%emt 0:03:18]} 29. h4 {[%emt 0:00:25]} a5 {[%emt 0:03:16]} 30. Rb3 {[%emt 0:00:38]} Ra6 {[%emt 0:00:52]} 31. Nd5 {[%emt 0:00:24]} cxd5 {[%emt 0:00:18]} 32. Rxb5 {[%emt 0:00:12]} a4 {[%emt 0:00:50]} 33. Bxd5 {[%emt 0:00:47]} Nd7 {[%emt 0:01:03]} 34. Qb4 {[%emt 0:00:33]} Ne5 {[%emt 0:01:51]} 35. Ra5 {[%emt 0:00:24]} Ng4 {[%emt 0:00:38]} 36. Bf3 {[%emt 0:00:38]} Rxa5 {[%emt 0:00:09]} 37. Qxa5 {[%emt 0:00:05]} Ne5 {[%emt 0:00:05]} 38. Bd5 {[%emt 0:00:34]} Ng4 {[%emt 0:00:21]} 39. Bf3 {[%emt 0:00:32]} Ne5 {[%emt 0:00:02]} 40. Bd5 {[%emt 0:00:00]} Ng4 {[%emt 0:00:00]} 41. Qa7 {[%emt 0:08:53]} Re8 {[%emt 0:05:23]} 42. Rd3 {[%emt 0:06:50]} Re7 {[%emt 0:08:10]} 43. Qa8+ {[%emt 0:08:25]} Kg7 {[%emt 0:00:06]} 44. Rf3 {[%emt 0:02:25]} Qd4 {[%emt 0:04:29]} 45. Kg2 {[%emt 0:01:46]} Rd7 {[%emt 0:04:15]} 46. Ba2 {[%emt 0:03:34]} Ra7 {[%emt 0:00:48]} 47. Qb8 {[%emt 0:00:33]} h5 {[%emt 0:03:20]} 48. Rf4 {[%emt 0:01:00]} Qc5 {[%emt 0:00:15]} 49. Qe8 {[%emt 0:00:48]} Nf6 {[%emt 0:02:51]} 50. Qd8 {[%emt 0:00:02]} Qc6+ {[%emt 0:00:24]} 51. f3 {[%emt 0:01:57]} a3 {[%emt 0:02:54]} 52. Qd4 {[%emt 0:00:21]} Re7 {[%emt 0:00:12]} 53. Kf2 {[%emt 0:00:48]} Qa6 {[%emt 0:01:21]} 54. Bc4 {[%emt 0:00:12]} Qa7 {[%emt 0:00:45]} 55. Ba2 {[%emt 0:00:46]} Qxd4+ {[%emt 0:03:09]} 56. Rxd4 {[%emt 0:00:01]} Ra7 {[%emt 0:00:08]} 57. Ke3 {[%emt 0:00:13]} Nd7 {[%emt 0:00:11]} 58. Rd3 {[%emt 0:01:00]} Nc5 {[%emt 0:01:07]} 59. Rc3 {[%emt 0:00:11]} Ra5 {[%emt 0:00:15]} 60. Kd4 {[%emt 0:00:44]} Ne6+ {[%emt 0:01:17]} 61. Kc4 {[%emt 0:00:05]} g5 {[%emt 0:00:59]} 62. Kb4 {[%emt 0:00:48]} Re5 {[%emt 0:00:19]} 63. e3 {[%emt 0:00:56]} gxh4 {[%emt 0:00:21]} 64. gxh4 {[%emt 0:00:27]} Rf5 {[%emt 0:00:54]} 65. f4 {[%emt 0:00:36]} Nxf4 {[%emt 0:00:19]} 66. exf4 {[%emt 0:00:24]} Rxf4+ {[%emt 0:00:01]} 67. Kxa3 {[%emt 0:00:24]} Rxh4 {[%emt 0:00:06]} 68. Rf3 {[%emt 0:00:37]} f6 {[%emt 0:00:05]} 69. Kb3 {[%emt 0:00:10]} Rg4 {[%emt 0:00:26]} 70. Kc3 {[%emt 0:00:46]} h4 {[%emt 0:00:20]} 71. Rf2 {[%emt 0:00:13]} h3 {[%emt 0:01:25]} 72. Bd5 {[%emt 0:00:15]} Kg6 {[%emt 0:00:28]} 73. Kd3 {[%emt 0:00:41]} Kg5 {[%emt 0:00:14]} 74. Ke3 {[%emt 0:00:41]} f5 {[%emt 0:00:13]} 75. Rb2 {[%emt 0:00:43]} Ra4 {[%emt 0:00:18]} 76. Bf3 {[%emt 0:00:21]} Ra1 {[%emt 0:00:33]} 77. Rc2 {[%emt 0:00:41]} Kf6 {Ke4 Ke5+} 1/2-1/2

[Event "72nd RUS-ch Higher League 2019"]
[Site "Yaroslavl"]
[Date "2019.06.29"]
[Round "3.18"]
[White "Bigaliev, Renat"]
[Black "Pridorozhni, Aleksei"]
[Result "1/2-1/2"]
[ECO "A43"]
[WhiteElo "2427"]
[BlackElo "2588"]
[Annotator "ChessBase"]
[PlyCount "81"]
[EventDate "2019.06.27"]
[EventType "swiss"]
[EventCountry "RUS"]
[SourceTitle "playchess.com"]
[Source "ChessBase"]
[SourceQuality "1"]
[TimeControl "40/5400+30:1800+30"]

1. d4 {[%emt 0:00:00]} Nf6 {[%emt 0:00:00]} 2. Nf3 {[%emt 0:00:17]} c5 {[%emt 0:00:27]} 3. d5 {[%emt 0:04:05]} b5 {[%emt 0:00:10]} 4. c4 {[%emt 0:03:51]} bxc4 {[%emt 0:00:22]} 5. Nc3 {[%emt 0:00:43]} d6 {[%emt 0:00:40]} 6. e4 {[%emt 0:01:11]} Nbd7 {[%emt 0:01:31]} 7. Bxc4 {[%emt 0:06:47]} g6 {[%emt 0:00:42]} 8. O-O {[%emt 0:00:18]} Bg7 {[%emt 0:00:20]} 9. Bg5 {[%emt 0:11:15]} O-O {[%emt 0:01:37]} 10. Qd2 {[%emt 0:01:18]} Nb6 {[%emt 0:01:45]} 11. Bd3 {[%emt 0:02:29]} a5 {[%emt 0:17:20]} 12. Rfe1 {[%emt 0:13:39]} Bg4 {[%emt 0:12:21]} 13. Nh4 {[%emt 0:05:17]} a4 {[%emt 0:00:42]} 14. Bh6 {[%emt 0:06:03]} e5 {[%emt 0:07:32]} 15. dxe6 {[%emt 0:02:25]} Bxe6 {[%emt 0:00:35]} 16. Bxg7 {[%emt 0:04:22]} Kxg7 {[%emt 0:00:49]} 17. Rad1 {[%emt 0:02:31]} Ng4 {[%emt 0:12:42]} 18. Nf3 {[%emt 0:01:58]} Ne5 {[%emt 0:02:07]} 19. Be2 {[%emt 0:13:30]} Nbc4 {[%emt 0:07:09]} 20. Qc2 {[%emt 0:02:07]} Nxf3+ {[%emt 0:11:30]} 21. Bxf3 {[%emt 0:00:05]} Qb8 {[%emt 0:01:34]} 22. e5 {[%emt 0:04:35]} Qxb2 {[%emt 0:02:32]} 23. Qxb2 {[%emt 0:00:02]} Nxb2 {[%emt 0:00:08]} 24. Rxd6 {[%emt 0:00:12]} Rad8 {[%emt 0:01:11]} 25. a3 {[%emt 0:04:24]} Bb3 {[%emt 0:13:32]} 26. Bc6 {[%emt 0:01:32]} Nd3 {[%emt 0:00:58]} 27. Re4 {[%emt 0:02:43]} c4 {[%emt 0:00:31]} 28. f4 {[%emt 0:01:11]} Rb8 {[%emt 0:01:07]} 29. g4 {[%emt 0:00:56]} Nc5 {[%emt 0:00:30]} 30. Re3 {[%emt 0:00:32]} Bc2 {[%emt 0:00:13]} 31. Rd2 {[%emt 0:00:57]} Bd3 {[%emt 0:00:22]} 32. Nxa4 {[%emt 0:00:47]} Rb1+ {[%emt 0:00:38]} 33. Kg2 {[%emt 0:00:07]} Nxa4 {[%emt 0:01:22]} 34. Bxa4 {[%emt 0:00:01]} Rfb8 {[%emt 0:00:56]} 35. e6 {[%emt 0:01:25]} fxe6 {[%emt 0:00:16]} 36. Rxe6 {[%emt 0:00:03]} Ra1 {[%emt 0:00:33]} 37. Bc6 {[%emt 0:01:37]} Rxa3 {[%emt 0:00:13]} 38. Be4 {[%emt 0:01:02]} Rd8 {[%emt 0:01:20]} 39. Bxd3 {[%emt 0:01:17]} cxd3 {[%emt 0:00:38]} 40. Re3 {[%emt 0:00:00]} Ra4 {[%emt 0:00:00]} 41. Rexd3 {[%emt 0:00:45]} 1/2-1/2

[Event "72nd RUS-ch Higher League 2019"]
[Site "Yaroslavl"]
[Date "2019.06.29"]
[Round "3.19"]
[White "Rychkov, Oleg"]
[Black "Romanov, Evgeny"]
[Result "1/2-1/2"]
[ECO "A25"]
[WhiteElo "2409"]
[BlackElo "2577"]
[Annotator "ChessBase"]
[PlyCount "80"]
[EventDate "2019.06.27"]
[EventType "swiss"]
[EventCountry "RUS"]
[SourceTitle "playchess.com"]
[Source "ChessBase"]
[SourceQuality "1"]
[TimeControl "40/5400+30:1800+30"]

1. c4 {[%emt 0:00:00]} e5 {[%emt 0:03:57]} 2. Nc3 {[%emt 0:00:00]} Nc6 {[%emt 0:00:39]} 3. g3 {[%emt 0:00:16]} f5 {[%emt 0:03:10]} 4. Bg2 {[%emt 0:02:03]} Nf6 {[%emt 0:00:09]} 5. e3 {[%emt 0:00:44]} d6 {[%emt 0:02:50]} 6. Nge2 {[%emt 0:01:26]} g5 {[%emt 0:04:47]} 7. d4 {[%emt 0:09:15]} Bg7 {[%emt 0:01:05]} 8. dxe5 {[%emt 0:01:18]} dxe5 {[%emt 0:01:07]} 9. Qxd8+ {[%emt 0:03:06]} Nxd8 {[%emt 0:01:47]} 10. e4 {[%emt 0:00:49]} f4 {[%emt 0:03:56]} 11. h4 {[%emt 0:02:04]} h6 {[%emt 0:01:15]} 12. hxg5 {[%emt 0:12:29]} hxg5 {[%emt 0:00:21]} 13. Rxh8+ {[%emt 0:00:03]} Bxh8 {[%emt 0:00:07]} 14. b3 {[%emt 0:00:23]} Ne6 {[%emt 0:01:57]} 15. Bb2 {[%emt 0:00:40]} g4 {[%emt 0:08:33]} 16. f3 {[%emt 0:16:20]} gxf3 {[%emt 0:02:13]} 17. Bxf3 {[%emt 0:00:03]} Ng5 {[%emt 0:00:16]} 18. Bh1 {[%emt 0:01:02]} f3 {[%emt 0:09:25]} 19. Bc1 {[%emt 0:00:35]} Nfxe4 {[%emt 0:21:31]} 20. Nxe4 {[%emt 0:00:14]} Nxe4 {[%emt 0:00:06]} 21. Bxf3 {[%emt 0:00:35]} Nf6 {[%emt 0:00:09]} 22. Bb2 {[%emt 0:01:49]} e4 {[%emt 0:02:11]} 23. Bxe4 {[%emt 0:03:26]} Nxe4 {[%emt 0:00:53]} 24. Bxh8 {[%emt 0:00:10]} Bg4 {[%emt 0:00:07]} 25. Nc3 {[%emt 0:01:06]} Nxg3 {[%emt 0:11:00]} 26. Be5 {[%emt 0:01:47]} O-O-O {[%emt 0:01:31]} 27. Bxg3 {[%emt 0:00:55]} Rd3 {[%emt 0:00:04]} 28. Ne4 {[%emt 0:08:09]} Re3+ {[%emt 0:00:18]} 29. Kd2 {[%emt 0:00:04]} Rxe4 {[%emt 0:00:06]} 30. Re1 {[%emt 0:00:03]} Rxe1 {[%emt 0:00:15]} 31. Bxe1 {[%emt 0:00:05]} Bf5 {[%emt 0:00:05]} 32. Kc3 {[%emt 0:00:05]} c5 {[%emt 0:00:12]} 33. Bf2 {[%emt 0:00:07]} b6 {[%emt 0:00:06]} 34. a4 {[%emt 0:00:04]} Kb7 {[%emt 0:00:07]} 35. a5 {[%emt 0:00:07]} Kc6 {[%emt 0:00:15]} 36. axb6 {[%emt 0:00:08]} axb6 {[%emt 0:00:03]} 37. b4 {[%emt 0:00:04]} cxb4+ {[%emt 0:00:06]} 38. Kxb4 {[%emt 0:00:02]} Be6 {[%emt 0:00:08]} 39. Bxb6 {[%emt 0:00:05]} Bxc4 {[%emt 0:00:05]} 40. Kxc4 {[%emt 0:00:00]} Kxb6 {[%emt 0:00:00]} 1/2-1/2

[Event "72nd RUS-ch Higher League 2019"]
[Site "Yaroslavl"]
[Date "2019.06.29"]
[Round "3.20"]
[White "Samojlov, Anton"]
[Black "Lomasov, Semyon"]
[Result "0-1"]
[ECO "C00"]
[WhiteElo "2350"]
[BlackElo "2542"]
[Annotator "ChessBase"]
[PlyCount "76"]
[EventDate "2019.06.27"]
[EventType "swiss"]
[EventCountry "RUS"]
[SourceTitle "playchess.com"]
[Source "ChessBase"]
[SourceQuality "1"]
[TimeControl "40/5400+30:1800+30"]

1. e4 {[%emt 0:01:10]} e6 {[%emt 0:00:06]} 2. d4 {[%emt 0:00:12]} d5 {[%emt 0:00:06]} 3. Bd3 {[%emt 0:00:10]} dxe4 {[%emt 0:05:09]} 4. Bxe4 {[%emt 0:00:09]} Nf6 {[%emt 0:00:40]} 5. Bf3 {[%emt 0:00:12]} c5 {[%emt 0:01:41]} 6. Ne2 {[%emt 0:00:17]} Nc6 {[%emt 0:00:32]} 7. Be3 {[%emt 0:00:36]} cxd4 {[%emt 0:00:20]} 8. Nxd4 {[%emt 0:00:38]} Ne5 {[%emt 0:00:28]} 9. Nc3 {[%emt 0:02:00]} a6 {[%emt 0:08:54]} 10. Qe2 {[%emt 0:05:50]} Nxf3+ {[%emt 0:06:32]} 11. Qxf3 {[%emt 0:00:32]} e5 {[%emt 0:32:09]} 12. Nde2 {[%emt 0:47:00]} h6 {[%emt 0:12:20]} 13. O-O {[%emt 0:07:47]} Qc7 {[%emt 0:03:43]} 14. Rad1 {[%emt 0:11:00]} Be6 {[%emt 0:06:33]} 15. Qg3 {[%emt 0:01:41]} g5 {[%emt 0:03:00]} 16. Nd4 {[%emt 0:04:56]} Bd7 {[%emt 0:03:56]} 17. Qf3 {[%emt 0:04:36]} Be7 {[%emt 0:00:39]} 18. Ne4 {[%emt 0:07:27]} Nxe4 {[%emt 0:03:00]} 19. Qxe4 {[%emt 0:00:09]} exd4 {[%emt 0:03:00]} 20. Bxd4 {[%emt 0:00:02]} Rg8 {[%emt 0:02:08]} 21. Bf6 {[%emt 0:00:50]} Be6 {[%emt 0:01:02]} 22. Be5 {[%emt 0:01:16]} f5 {[%emt 0:02:53]} 23. Qe2 {[%emt 0:01:39]} Qc4 {[%emt 0:00:25]} 24. Rd3 {[%emt 0:00:16]} Kf7 {[%emt 0:01:17]} 25. Re1 {[%emt 0:00:41]} Rad8 {[%emt 0:01:22]} 26. b3 {[%emt 0:00:22]} Qg4 {[%emt 0:00:26]} 27. f3 {[%emt 0:00:22]} Qb4 {[%emt 0:00:19]} 28. Bd4 {[%emt 0:00:33]} Rg6 {[%emt 0:00:30]} 29. c3 {[%emt 0:00:35]} Qb5 {[%emt 0:00:26]} 30. Red1 {[%emt 0:01:15]} Bc5 {[%emt 0:00:41]} 31. Qe3 {[%emt 0:00:41]} Bxd4 {[%emt 0:00:07]} 32. Rxd4 {[%emt 0:00:02]} Rxd4 {[%emt 0:00:22]} 33. Qxd4 {[%emt 0:00:08]} Rg8 {[%emt 0:00:25]} 34. c4 {[%emt 0:00:39]} Qc6 {[%emt 0:00:09]} 35. Qe5 {[%emt 0:00:01]} Rc8 {[%emt 0:00:24]} 36. Kf1 {[%emt 0:01:36]} Qc5 {[%emt 0:00:12]} 37. Qe2 {[%emt 0:00:39]} Re8 {[%emt 0:01:08]} 38. Re1 {[%emt 0:00:02]} Bd7 {[%emt 0:00:23]} 0-1

[Event "72nd RUS-ch Higher League 2019"]
[Site "Yaroslavl"]
[Date "2019.06.29"]
[Round "3.23"]
[White "Bykov, Oleg"]
[Black "Belozerov, Andrei"]
[Result "0-1"]
[ECO "D11"]
[WhiteElo "2401"]
[BlackElo "2533"]
[Annotator "ChessBase"]
[PlyCount "148"]
[EventDate "2019.06.27"]
[EventType "swiss"]
[EventCountry "RUS"]
[SourceTitle "playchess.com"]
[Source "ChessBase"]
[SourceQuality "1"]
[TimeControl "40/5400+30:1800+30"]

1. d4 {[%emt 0:00:00]} d5 {[%emt 0:00:00]} 2. c4 {[%emt 0:00:00]} c6 {[%emt 0:00:00]} 3. Nf3 {[%emt 0:00:00]} Nf6 {[%emt 0:00:00]} 4. e3 {[%emt 0:00:00]} Bg4 {[%emt 0:00:07]} 5. h3 {[%emt 0:00:26]} Bxf3 {[%emt 0:00:11]} 6. Qxf3 {[%emt 0:00:06]} e6 {[%emt 0:00:06]} 7. Nc3 {[%emt 0:01:30]} Bb4 {[%emt 0:00:24]} 8. Bd3 {[%emt 0:01:11]} Nbd7 {[%emt 0:00:27]} 9. O-O {[%emt 0:01:48]} O-O {[%emt 0:00:24]} 10. Bd2 {[%emt 0:09:08]} Nc5 {[%emt 0:01:23]} 11. Be2 {[%emt 0:17:53]} Nce4 {[%emt 0:03:13]} 12. Be1 {[%emt 0:00:38]} Qa5 {[%emt 0:24:46]} 13. Nxe4 {[%emt 0:07:44]} Nxe4 {[%emt 0:01:10]} 14. Bd3 {[%emt 0:02:23]} Bxe1 {[%emt 0:04:50]} 15. Rfxe1 {[%emt 0:00:05]} Nf6 {[%emt 0:02:47]} 16. c5 {[%emt 0:05:41]} Rfe8 {[%emt 0:02:39]} 17. a3 {[%emt 0:04:22]} e5 {[%emt 0:02:03]} 18. b4 {[%emt 0:00:57]} Qc7 {[%emt 0:01:23]} 19. Qg3 {[%emt 0:00:50]} Re7 {[%emt 0:03:01]} 20. Qh4 {[%emt 0:05:37]} Rae8 {[%emt 0:01:55]} 21. Reb1 {[%emt 0:02:00]} exd4 {[%emt 0:08:43]} 22. exd4 {[%emt 0:02:29]} h6 {[%emt 0:02:18]} 23. Rc1 {[%emt 0:05:26]} Ne4 {[%emt 0:04:56]} 24. a4 {[%emt 0:03:31]} Re6 {[%emt 0:01:12]} 25. Rc2 {[%emt 0:09:20]} Ng5 {[%emt 0:02:46]} 26. Rf1 {[%emt 0:01:58]} Qe7 {[%emt 0:04:09]} 27. Qf4 {[%emt 0:03:23]} Rf6 {[%emt 0:01:53]} 28. Qg3 {[%emt 0:02:21]} Ne4 {[%emt 0:01:31]} 29. Qe3 {[%emt 0:00:56]} Re6 {[%emt 0:00:38]} 30. Qf4 {[%emt 0:01:04]} Rf6 {[%emt 0:05:15]} 31. Qc1 {[%emt 0:04:03]} Re6 {[%emt 0:00:42]} 32. Qf4 {[%emt 0:00:27]} Qd8 {[%emt 0:05:26]} 33. g3 {[%emt 0:05:52]} Rf6 {[%emt 0:03:40]} 34. Qg4 {[%emt 0:00:08]} Rfe6 {[%emt 0:00:30]} 35. Qf4 {[%emt 0:00:43]} h5 {[%emt 0:07:17]} 36. Kh2 {[%emt 0:02:45]} g6 {[%emt 0:01:34]} 37. h4 {[%emt 0:00:37]} Rf6 {[%emt 0:00:51]} 38. Qh6 {[%emt 0:00:50]} Rf3 {[%emt 0:01:49]} 39. Be2 {[%emt 0:00:03]} Rf5 {[%emt 0:01:17]} 40. f3 {[%emt 0:00:00]} Qf6 {[%emt 0:00:00]} 41. Qe3 {[%emt 0:12:47]} Nd6 {[%emt 0:06:09]} 42. Qf2 {[%emt 0:02:01]} Nc4 {[%emt 0:00:29]} 43. Bxc4 {[%emt 0:02:21]} dxc4 {[%emt 0:00:04]} 44. Rxc4 {[%emt 0:00:30]} Re4 {[%emt 0:02:33]} 45. Kg2 {[%emt 0:01:39]} Qe6 {[%emt 0:01:07]} 46. Rc2 {[%emt 0:00:15]} Re3 {[%emt 0:00:35]} 47. Qd2 {[%emt 0:06:33]} Qb3 {[%emt 0:03:48]} 48. Rb2 {[%emt 0:03:08]} Qa3 {[%emt 0:02:54]} 49. Ra2 {[%emt 0:00:15]} Qb3 {[%emt 0:02:25]} 50. Rb2 {[%emt 0:00:09]} Rd3 {[%emt 0:01:09]} 51. Rxb3 {[%emt 0:01:45]} Rxd2+ {[%emt 0:00:09]} 52. Rf2 {[%emt 0:00:03]} Rxd4 {[%emt 0:00:08]} 53. Re2 {[%emt 0:00:05]} Kf8 {[%emt 0:00:32]} 54. f4 {[%emt 0:01:42]} a5 {[%emt 0:03:07]} 55. bxa5 {[%emt 0:00:49]} Rxa4 {[%emt 0:00:17]} 56. Rxb7 {[%emt 0:02:00]} Rxa5 {[%emt 0:00:20]} 57. Rc2 {[%emt 0:00:33]} Rfxc5 {[%emt 0:00:49]} 58. Rxc5 {[%emt 0:00:17]} Rxc5 {[%emt 0:00:01]} 59. Rc7 {[%emt 0:00:05]} Rc3 {[%emt 0:00:44]} 60. Rd7 {[%emt 0:00:47]} Kg7 {[%emt 0:06:44]} 61. Rd6 {[%emt 0:00:06]} c5 {[%emt 0:00:51]} 62. Rc6 {[%emt 0:00:10]} c4 {[%emt 0:00:04]} 63. Kf2 {[%emt 0:02:04]} Rc1 {[%emt 0:00:18]} 64. Kg2 {[%emt 0:01:12]} c3 {[%emt 0:00:15]} 65. Kf2 {[%emt 0:00:45]} Kf8 {[%emt 0:04:04]} 66. Kg2 {[%emt 0:01:15]} Ke7 {[%emt 0:00:16]} 67. f5 {[%emt 0:00:55]} gxf5 {[%emt 0:00:16]} 68. Kh2 {[%emt 0:00:20]} Kd7 {[%emt 0:00:19]} 69. Rf6 {[%emt 0:00:55]} c2 {[%emt 0:03:16]} 70. Rxf7+ {[%emt 0:00:07]} Kd6 {[%emt 0:00:08]} 71. Rf6+ {[%emt 0:00:04]} Kd5 {[%emt 0:00:04]} 72. Rxf5+ {[%emt 0:00:05]} Kd4 {[%emt 0:00:05]} 73. Rf4+ {[%emt 0:01:29]} Ke3 {[%emt 0:00:11]} 74. Rc4 {[%emt 0:00:15]} Kd3 {[%emt 0:00:06]} 0-1